[Event "Live Chess"]
[Site "Chess.com"]
[Date "2023.05.20"]
[Round "-"]
[White "domrobson"]
[Black "Vladyslav2008"]
[Result "1/2-1/2"]
[WhiteElo "1772"]
[BlackElo "2163"]
[TimeControl "300"]
[EndTime "12:03:56 PDT"]
[Termination "Game drawn by agreement"]

1. d4 {[%clk 0:04:59.3]} 1... Nf6 {[%clk 0:04:57.2]} 2. c4 {[%clk 0:04:58.3]}
2... e6 {[%clk 0:04:55.8]} 3. Nf3 {[%clk 0:04:56.4]} 3... d5 {[%clk 0:04:54.6]}
4. Nc3 {[%clk 0:04:55.9]} 4... c5 {[%clk 0:04:53]} 5. Bg5 {[%clk 0:04:55.1]}
5... Nc6 {[%clk 0:04:49.1]} 6. cxd5 {[%clk 0:04:52.3]} 6... exd5 {[%clk
0:04:48.1]} 7. e3 {[%clk 0:04:50.5]} 7... cxd4 {[%clk 0:04:46.6]} 8. Nxd4 {[%clk
0:04:42.9]} 8... Bb4 {[%clk 0:04:43]} 9. Bb5 {[%clk 0:04:40.6]} 9... Bd7 {[%clk
0:04:34.1]} 10. O-O {[%clk 0:04:32.4]} 10... Bxc3 {[%clk 0:04:27.9]} 11. bxc3
{[%clk 0:04:27.3]} 11... a6 {[%clk 0:04:26.6]} 12. Bd3 {[%clk 0:04:20.9]} 12...
h6 {[%clk 0:04:21.4]} 13. Bxf6 {[%clk 0:04:19.4]} 13... Qxf6 {[%clk 0:04:20]}
14. Qb3 {[%clk 0:04:17.4]} 14... Qd6 {[%clk 0:04:12.6]} 15. Qxb7 {[%clk
0:04:12.6]} 15... O-O {[%clk 0:04:07.8]} 16. Qb2 {[%clk 0:04:02.6]} 16... Ne5
{[%clk 0:04:03.9]} 17. Bf5 {[%clk 0:03:56.4]} 17... Nc4 {[%clk 0:04:00.6]} 18.
Qc2 {[%clk 0:03:53.2]} 18... Rab8 {[%clk 0:03:59.1]} 19. Rfb1 {[%clk 0:03:50.7]}
19... Na3 {[%clk 0:03:55.7]} 20. Rxb8 {[%clk 0:03:33.3]} 20... Nxc2 {[%clk
0:03:52.4]} 21. Rxf8+ {[%clk 0:03:32.9]} 21... Kxf8 {[%clk 0:03:51.2]} 22. Bxc2
{[%clk 0:03:32.3]} 22... Qc5 {[%clk 0:03:44.4]} 23. Bb3 {[%clk 0:03:24.4]} 23...
Qxc3 {[%clk 0:03:42.8]} 24. Rd1 {[%clk 0:03:23.1]} 24... Bg4 {[%clk 0:03:31.2]}
25. Nf3 {[%clk 0:03:18.2]} 25... Bxf3 {[%clk 0:03:29.6]} 26. gxf3 {[%clk
0:03:16.7]} 26... Ke7 {[%clk 0:03:20.2]} 27. Rxd5 {[%clk 0:03:15.1]} 27... g6
{[%clk 0:03:10.1]} 28. Rd4 {[%clk 0:03:08.7]} 28... Qc6 {[%clk 0:03:02.4]} 29.
Re4+ {[%clk 0:03:05.7]} 29... Kf8 {[%clk 0:02:57.9]} 30. Kg2 {[%clk 0:02:56.3]}
30... g5 {[%clk 0:02:51.1]} 31. Rc4 {[%clk 0:02:49.5]} 31... Qb7 {[%clk
0:02:49.7]} 32. h3 {[%clk 0:02:39.4]} 32... Kg7 {[%clk 0:02:47.3]} 33. Re4
{[%clk 0:02:37.2]} 33... f5 {[%clk 0:02:41.9]} 34. Rc4 {[%clk 0:02:31.7]} 34...
h5 {[%clk 0:02:35]} 35. Kg3 {[%clk 0:02:27.8]} 35... Kf6 {[%clk 0:02:26.5]} 36.
Ra4 {[%clk 0:02:24]} 36... Qc7+ {[%clk 0:02:18.5]} 37. Kg2 {[%clk 0:02:20.9]}
37... Qc6 {[%clk 0:02:17.2]} 38. Rc4 {[%clk 0:02:17.8]} 38... Qb7 {[%clk
0:02:11.4]} 39. Ra4 {[%clk 0:02:16.3]} 39... g4 {[%clk 0:02:06.2]} 40. hxg4
{[%clk 0:02:14.8]} 40... hxg4 {[%clk 0:02:04.1]} 41. Rf4 {[%clk 0:02:12.4]}
41... Kg5 {[%clk 0:01:54.6]} 42. Kg3 {[%clk 0:02:07.4]} 42... gxf3 {[%clk
0:01:50]} 43. Rxf3 {[%clk 0:02:04.6]} 43... Qc7+ {[%clk 0:01:48.4]} 44. Kg2
{[%clk 0:02:02.8]} 44... Kg4 {[%clk 0:01:39.7]} 45. Rf4+ {[%clk 0:01:57.8]}
45... Kg5 {[%clk 0:01:36.3]} 46. Kg3 {[%clk 0:01:54.4]} 46... Qc6 {[%clk
0:01:33.1]} 47. Kh2 {[%clk 0:01:43]} 47... Qh6+ {[%clk 0:01:27.2]} 48. Kg2
{[%clk 0:01:40.5]} 48... Qc6+ {[%clk 0:01:24.9]} 49. Kh2 {[%clk 0:01:39.4]}
49... a5 {[%clk 0:01:22.6]} 50. Kg1 {[%clk 0:01:36]} 50... Qc1+ {[%clk
0:01:15.7]} 51. Kg2 {[%clk 0:01:33.9]} 51... Kf6 {[%clk 0:01:09.3]} 52. Kh2
{[%clk 0:01:30.4]} 52... Ke5 {[%clk 0:01:04.5]} 53. Kg2 {[%clk 0:01:29.3]} 53...
Qc6+ {[%clk 0:01:01.8]} 54. Kh2 {[%clk 0:01:28.1]} 54... Qc8 {[%clk 0:00:59]}
55. Kg2 {[%clk 0:01:25.5]} 55... Kd6 {[%clk 0:00:53.3]} 56. Kh2 {[%clk
0:01:21.9]} 56... Qh8+ {[%clk 0:00:48.5]} 57. Kg2 {[%clk 0:01:20.9]} 57... Qg7+
{[%clk 0:00:48.1]} 58. Kh2 {[%clk 0:01:20]} 58... Qe5 {[%clk 0:00:41.6]} 59. Kg2
{[%clk 0:01:19.3]} 59... Kc5 {[%clk 0:00:40.6]} 60. Kf1 {[%clk 0:01:18.3]} 60...
Kb6 {[%clk 0:00:28.9]} 61. Kg2 {[%clk 0:01:17]} 61... Qg7+ {[%clk 0:00:23.8]}
62. Kf1 {[%clk 0:01:15.6]} 62... Qe5 {[%clk 0:00:22.1]} 1/2-1/2

[Event "Live Chess"]
[Site "Chess.com"]
[Date "2023.05.20"]
[Round "-"]
[White "KeithArkell"]
[Black "CeladonFish"]
[Result "1-0"]
[WhiteElo "2610"]
[BlackElo "1060"]
[TimeControl "300"]
[EndTime "12:04:00 PDT"]
[Termination "KeithArkell won - game abandoned"]

1. d4 {[%clk 0:04:58.9]} 1... Nf6 {[%clk 0:04:58.9]} 2. Nf3 {[%clk 0:04:58.1]}
2... g6 {[%clk 0:04:58.2]} 3. c4 {[%clk 0:04:57.3]} 3... Bg7 {[%clk 0:04:58]} 4.
g3 {[%clk 0:04:56.4]} 4... O-O {[%clk 0:04:57.6]} 5. Bg2 {[%clk 0:04:55.9]} 5...
d6 {[%clk 0:04:56.9]} 6. O-O {[%clk 0:04:55]} 6... c6 {[%clk 0:04:55]} 7. Nc3
{[%clk 0:04:53.8]} 7... a6 {[%clk 0:04:52.1]} 8. a4 {[%clk 0:04:52.3]} 8... Bd7
{[%clk 0:04:48.6]} 9. Bf4 {[%clk 0:04:50.2]} 9... b5 {[%clk 0:04:46.7]} 10. axb5
{[%clk 0:04:49.1]} 10... cxb5 {[%clk 0:04:44.8]} 11. Nxb5 {[%clk 0:04:46.5]}
11... Bc6 {[%clk 0:04:34.9]} 12. Nc3 {[%clk 0:04:42.5]} 12... Bxf3 {[%clk
0:04:21.3]} 13. Bxf3 {[%clk 0:04:35.6]} 13... Nc6 {[%clk 0:04:18.4]} 14. Bxc6
{[%clk 0:04:33.7]} 1-0

[Event "Live Chess"]
[Site "Chess.com"]
[Date "2023.05.20"]
[Round "-"]
[White "TheSmoulderingMaster"]
[Black "OSmith06"]
[Result "1-0"]
[WhiteElo "1735"]
[BlackElo "1682"]
[TimeControl "300"]
[EndTime "12:04:05 PDT"]
[Termination "TheSmoulderingMaster won by checkmate"]

1. e4 {[%clk 0:04:58.6]} 1... c6 {[%clk 0:04:58.4]} 2. d4 {[%clk 0:04:56.9]}
2... d5 {[%clk 0:04:58.3]} 3. Nc3 {[%clk 0:04:55.5]} 3... dxe4 {[%clk
0:04:57.4]} 4. Nxe4 {[%clk 0:04:55]} 4... Bf5 {[%clk 0:04:56.9]} 5. Ng3 {[%clk
0:04:54.1]} 5... Bg6 {[%clk 0:04:56.5]} 6. Nh3 {[%clk 0:04:53]} 6... h6 {[%clk
0:04:54.2]} 7. Nf4 {[%clk 0:04:52]} 7... Bh7 {[%clk 0:04:53.7]} 8. Bc4 {[%clk
0:04:50.4]} 8... e6 {[%clk 0:04:50.5]} 9. Qh5 {[%clk 0:04:48.2]} 9... Nf6 {[%clk
0:04:48.3]} 10. Qe5 {[%clk 0:04:44.6]} 10... Bd6 {[%clk 0:04:44.1]} 11. Qe3
{[%clk 0:04:42.9]} 11... Bxf4 {[%clk 0:04:21]} 12. Qxf4 {[%clk 0:04:41.8]} 12...
Bxc2 {[%clk 0:04:19.9]} 13. O-O {[%clk 0:04:40]} 13... O-O {[%clk 0:04:13.9]}
14. Re1 {[%clk 0:04:38.8]} 14... Nd5 {[%clk 0:04:10]} 15. Qg4 {[%clk 0:04:34]}
15... Qf6 {[%clk 0:04:01.6]} 16. Nh5 {[%clk 0:04:31.2]} 16... Qg6 {[%clk
0:03:53.8]} 17. Qh4 {[%clk 0:04:28.6]} 17... Nd7 {[%clk 0:03:43.2]} 18. Be3
{[%clk 0:04:26.8]} 18... Nxe3 {[%clk 0:03:41.5]} 19. Rxe3 {[%clk 0:04:25.8]}
19... Nf6 {[%clk 0:03:35.1]} 20. Nf4 {[%clk 0:04:21.3]} 20... Qg5 {[%clk
0:03:26.4]} 21. Rh3 {[%clk 0:04:09]} 21... Qxh4 {[%clk 0:03:19.6]} 22. Rxh4
{[%clk 0:04:08.1]} 22... g5 {[%clk 0:03:18.1]} 23. Rxh6 {[%clk 0:04:07]} 23...
Ng4 {[%clk 0:03:11.9]} 24. Rh5 {[%clk 0:04:01.4]} 24... gxf4 {[%clk 0:03:08.2]}
25. Rg5+ {[%clk 0:04:00.7]} 25... Bg6 {[%clk 0:03:02.1]} 26. Rxg4 {[%clk
0:03:58.9]} 26... b5 {[%clk 0:02:57.1]} 27. Bd3 {[%clk 0:03:57]} 27... Kg7
{[%clk 0:02:53.7]} 28. h4 {[%clk 0:03:55.9]} 28... f5 {[%clk 0:02:47.8]} 29. Rg5
{[%clk 0:03:53.5]} 29... Kf6 {[%clk 0:02:36.2]} 30. Re1 {[%clk 0:03:50.4]} 30...
Rad8 {[%clk 0:02:34.5]} 31. g3 {[%clk 0:03:40.3]} 31... fxg3 {[%clk 0:02:26.3]}
32. Rxg3 {[%clk 0:03:37.2]} 32... Rxd4 {[%clk 0:02:25.1]} 33. Rge3 {[%clk
0:03:35.1]} 33... Bf7 {[%clk 0:02:19]} 34. Bc2 {[%clk 0:03:33.2]} 34... Rxh4
{[%clk 0:02:16.8]} 35. Bb3 {[%clk 0:03:30.4]} 35... Rg8+ {[%clk 0:02:10.4]} 36.
Kf1 {[%clk 0:03:24.2]} 36... Rh1+ {[%clk 0:02:09]} 37. Ke2 {[%clk 0:03:23]}
37... Bh5+ {[%clk 0:02:04.1]} 38. Kd2 {[%clk 0:03:21.2]} 38... Rd8+ {[%clk
0:01:59.8]} 39. Kc3 {[%clk 0:03:19]} 39... Rxe1 {[%clk 0:01:54]} 40. Rxe1 {[%clk
0:03:17.5]} 40... e5 {[%clk 0:01:46.2]} 41. Kb4 {[%clk 0:03:15.6]} 41... Rd4+
{[%clk 0:01:42.6]} 42. Kc5 {[%clk 0:03:13.9]} 42... Be8 {[%clk 0:01:38.1]} 43.
Rh1 {[%clk 0:03:10.7]} 43... Kg7 {[%clk 0:01:23]} 44. Rg1+ {[%clk 0:03:06.8]}
44... Rg4 {[%clk 0:01:18.7]} 45. Re1 {[%clk 0:03:03.1]} 45... e4 {[%clk
0:01:15.8]} 46. Kd6 {[%clk 0:02:59.1]} 46... a5 {[%clk 0:01:11]} 47. Ke7 {[%clk
0:02:57.5]} 47... Bg6 {[%clk 0:01:01.2]} 48. Kd6 {[%clk 0:02:54]} 48... a4
{[%clk 0:00:52]} 49. Be6 {[%clk 0:02:51.7]} 49... Rg2 {[%clk 0:00:50.4]} 50. Re2
{[%clk 0:02:47.2]} 50... Bh5 {[%clk 0:00:46.8]} 51. Rc2 {[%clk 0:02:45.6]} 51...
Rg6 {[%clk 0:00:41.9]} 52. Ke5 {[%clk 0:02:41.3]} 52... Bf3 {[%clk 0:00:38.5]}
53. Bxf5 {[%clk 0:02:38.8]} 53... Rg5 {[%clk 0:00:33]} 54. Kf4 {[%clk
0:02:34.2]} 54... Kh6 {[%clk 0:00:23.8]} 55. Rxc6+ {[%clk 0:02:30.3]} 55... Kh5
{[%clk 0:00:22.8]} 56. Rc7 {[%clk 0:02:26.2]} 56... e3 {[%clk 0:00:13.6]} 57.
Rh7# {[%clk 0:02:24.7]} 1-0

[Event "Live Chess"]
[Site "Chess.com"]
[Date "2023.05.20"]
[Round "-"]
[White "MrDodgy"]
[Black "Ocelot32"]
[Result "1-0"]
[WhiteElo "2280"]
[BlackElo "1397"]
[TimeControl "300"]
[EndTime "12:04:10 PDT"]
[Termination "MrDodgy won by resignation"]

1. e4 {[%clk 0:04:58.1]} 1... e6 {[%clk 0:04:57.6]} 2. d4 {[%clk 0:04:49.5]}
2... d5 {[%clk 0:04:54.6]} 3. Nc3 {[%clk 0:04:43.2]} 3... dxe4 {[%clk
0:04:52.5]} 4. Nxe4 {[%clk 0:04:42.6]} 4... Nd7 {[%clk 0:04:50.8]} 5. Nf3 {[%clk
0:04:41.1]} 5... Ngf6 {[%clk 0:04:49.6]} 6. Ng3 {[%clk 0:04:38.8]} 6... Be7
{[%clk 0:04:47.6]} 7. Bd3 {[%clk 0:04:37.8]} 7... b6 {[%clk 0:04:46]} 8. Qe2
{[%clk 0:04:35.5]} 8... Bb7 {[%clk 0:04:44]} 9. Bd2 {[%clk 0:04:34.6]} 9... O-O
{[%clk 0:04:41.8]} 10. O-O-O {[%clk 0:04:33.5]} 10... c5 {[%clk 0:04:39.7]} 11.
h4 {[%clk 0:04:27.6]} 11... cxd4 {[%clk 0:04:38.2]} 12. Nxd4 {[%clk 0:04:24.5]}
12... Rc8 {[%clk 0:04:35.6]} 13. Kb1 {[%clk 0:04:03.3]} 13... Nc5 {[%clk
0:04:34.2]} 14. Bc3 {[%clk 0:03:54.7]} 14... Nxd3 {[%clk 0:04:29.3]} 15. Rxd3
{[%clk 0:03:52.1]} 15... Qc7 {[%clk 0:04:14.5]} 16. Nh5 {[%clk 0:03:26.2]} 16...
Nd5 {[%clk 0:04:02.9]} 17. Qg4 {[%clk 0:03:09.3]} 17... Nxc3+ {[%clk 0:03:46.2]}
18. Rxc3 {[%clk 0:03:05.5]} 18... Qe5 {[%clk 0:03:34.1]} 19. Nf3 {[%clk
0:02:35.6]} 19... f5 {[%clk 0:02:53.5]} 20. Nxe5 {[%clk 0:02:22.7]} 20... fxg4
{[%clk 0:02:51.9]} 21. Rxc8 {[%clk 0:02:16.1]} 21... Rxc8 {[%clk 0:02:30.3]} 22.
Nxg4 {[%clk 0:02:08.7]} 22... Be4 {[%clk 0:02:23.1]} 23. Ne3 {[%clk 0:02:00.3]}
23... Bc5 {[%clk 0:02:16.4]} 24. Ng3 {[%clk 0:01:53.8]} 24... Bxe3 {[%clk
0:02:07.4]} 25. Nxe4 {[%clk 0:01:49.5]} 25... Bh6 {[%clk 0:01:59.3]} 26. g4
{[%clk 0:01:43.4]} 26... Bf4 {[%clk 0:01:55.2]} 27. Rd1 {[%clk 0:01:35.2]} 27...
Rc7 {[%clk 0:01:43.3]} 28. c3 {[%clk 0:01:29.7]} 28... Kf7 {[%clk 0:01:34.7]}
29. f3 {[%clk 0:01:22.6]} 29... h6 {[%clk 0:01:23.7]} 30. Rd8 {[%clk 0:01:08.7]}
30... Be3 {[%clk 0:01:12.8]} 31. Kc2 {[%clk 0:01:06.2]} 31... Re7 {[%clk
0:01:07]} 32. Nd6+ {[%clk 0:00:58.7]} 32... Kf6 {[%clk 0:01:02.4]} 33. Rf8+
{[%clk 0:00:44.4]} 33... Ke5 {[%clk 0:00:49.8]} 34. Nc4+ {[%clk 0:00:43.3]}
34... Kd5 {[%clk 0:00:44.7]} 35. Nxe3+ {[%clk 0:00:41.8]} 35... Kd6 {[%clk
0:00:40.6]} 36. Kd3 {[%clk 0:00:39.9]} 36... e5 {[%clk 0:00:38.3]} 37. Nf5+
{[%clk 0:00:37.2]} 1-0

[Event "Live Chess"]
[Site "Chess.com"]
[Date "2023.05.20"]
[Round "-"]
[White "Pablo_dmp"]
[Black "gmnorfolk"]
[Result "1-0"]
[WhiteElo "1868"]
[BlackElo "2047"]
[TimeControl "300"]
[EndTime "12:04:17 PDT"]
[Termination "Pablo_dmp won by resignation"]

1. e4 {[%clk 0:04:59]} 1... e5 {[%clk 0:04:59.5]} 2. Nc3 {[%clk 0:04:57.2]} 2...
f6 {[%clk 0:04:57.4]} 3. d4 {[%clk 0:04:53.5]} 3... exd4 {[%clk 0:04:55.6]} 4.
Qxd4 {[%clk 0:04:53.4]} 4... Nc6 {[%clk 0:04:54.7]} 5. Qd5 {[%clk 0:04:46.4]}
5... Nge7 {[%clk 0:04:51.7]} 6. Qh5+ {[%clk 0:04:39.1]} 6... g6 {[%clk 0:04:50]}
7. Qf3 {[%clk 0:04:36.4]} 7... Bg7 {[%clk 0:04:49.1]} 8. Bc4 {[%clk 0:04:34.5]}
8... Ne5 {[%clk 0:04:48]} 9. Qe2 {[%clk 0:04:33.3]} 9... Nxc4 {[%clk 0:04:46]}
10. Qxc4 {[%clk 0:04:33.2]} 10... c6 {[%clk 0:04:44.7]} 11. Nf3 {[%clk
0:04:31.2]} 11... d5 {[%clk 0:04:44.3]} 12. exd5 {[%clk 0:04:31.1]} 12... cxd5
{[%clk 0:04:42.5]} 13. Qd3 {[%clk 0:04:27.7]} 13... O-O {[%clk 0:04:39.3]} 14.
O-O {[%clk 0:04:26.5]} 14... Bf5 {[%clk 0:04:38.4]} 15. Qb5 {[%clk 0:04:22.5]}
15... d4 {[%clk 0:04:30]} 16. Ne2 {[%clk 0:04:01.5]} 16... d3 {[%clk 0:04:24.4]}
17. Ng3 {[%clk 0:03:56.3]} 17... dxc2 {[%clk 0:04:18.3]} 18. Nxf5 {[%clk
0:03:50.3]} 18... Nxf5 {[%clk 0:04:17.3]} 19. Qc4+ {[%clk 0:03:49.1]} 19... Kh8
{[%clk 0:04:14.1]} 20. Qxc2 {[%clk 0:03:48.1]} 20... Rc8 {[%clk 0:04:13.2]} 21.
Qb3 {[%clk 0:03:46.1]} 21... b6 {[%clk 0:04:00.9]} 22. Bf4 {[%clk 0:03:37.8]}
22... Nd4 {[%clk 0:03:58.8]} 23. Nxd4 {[%clk 0:03:36.3]} 23... Qxd4 {[%clk
0:03:58.7]} 24. Be3 {[%clk 0:03:33.5]} 24... Qd7 {[%clk 0:03:57.2]} 25. Rfd1
{[%clk 0:03:30]} 25... Qb7 {[%clk 0:03:52.7]} 26. Qd5 {[%clk 0:03:27.3]} 26...
Qxd5 {[%clk 0:03:50.2]} 27. Rxd5 {[%clk 0:03:25.9]} 27... Rf7 {[%clk 0:03:48]}
28. Rad1 {[%clk 0:03:23.7]} 28... h5 {[%clk 0:03:44.8]} 29. b3 {[%clk
0:03:16.5]} 29... Rc2 {[%clk 0:03:41.8]} 30. R5d2 {[%clk 0:03:12.3]} 30... Rfc7
{[%clk 0:03:40.6]} 31. Rxc2 {[%clk 0:03:10.3]} 31... Rxc2 {[%clk 0:03:39.2]} 32.
a4 {[%clk 0:03:03.3]} 32... Rb2 {[%clk 0:03:37.8]} 33. h4 {[%clk 0:02:58.2]}
33... Rxb3 {[%clk 0:03:36.6]} 34. Rd7 {[%clk 0:02:55.3]} 34... a5 {[%clk
0:03:28.3]} 35. Rb7 {[%clk 0:02:53.3]} 35... Rb4 {[%clk 0:03:27.5]} 36. Rxb6
{[%clk 0:02:50.2]} 36... Rxh4 {[%clk 0:03:24.4]} 37. f4 {[%clk 0:02:40.6]} 37...
Rg4 {[%clk 0:03:12.6]} 38. Kf2 {[%clk 0:02:37.4]} 38... g5 {[%clk 0:03:06.1]}
39. fxg5 {[%clk 0:02:32.4]} 39... fxg5 {[%clk 0:03:04.5]} 40. Rb5 {[%clk
0:02:29]} 40... Rxa4 {[%clk 0:02:59]} 41. Rxg5 {[%clk 0:01:48.3]} 41... h4
{[%clk 0:02:57.7]} 42. Bb6 {[%clk 0:01:39.2]} 42... Ra2+ {[%clk 0:02:53.2]} 43.
Kf3 {[%clk 0:01:37.1]} 43... a4 {[%clk 0:02:50.6]} 44. Rh5+ {[%clk 0:01:34]}
44... Kg8 {[%clk 0:02:49.1]} 45. Rxh4 {[%clk 0:01:33.9]} 45... a3 {[%clk
0:02:41.6]} 46. Rg4 {[%clk 0:01:31.1]} 46... Kf7 {[%clk 0:02:36.9]} 47. Bc5
{[%clk 0:01:25.5]} 47... Ra1 {[%clk 0:02:35]} 48. Rxg7+ {[%clk 0:01:23.2]} 48...
Kxg7 {[%clk 0:02:28]} 49. Bd4+ {[%clk 0:01:21.8]} 49... Kg6 {[%clk 0:02:27.9]}
50. Bxa1 {[%clk 0:01:21.4]} 50... Kf5 {[%clk 0:02:27.4]} 51. g4+ {[%clk
0:01:20.3]} 51... Kg5 {[%clk 0:02:24.9]} 52. Kg3 {[%clk 0:01:15.5]} 52... a2
{[%clk 0:02:24.2]} 53. Kf3 {[%clk 0:01:14]} 53... Kg6 {[%clk 0:02:22.9]} 54. Kf4
{[%clk 0:01:13.3]} 54... Kh7 {[%clk 0:02:20.5]} 55. Kg5 {[%clk 0:01:10.6]} 55...
Kg8 {[%clk 0:02:18.8]} 56. Kg6 {[%clk 0:01:08]} 56... Kf8 {[%clk 0:02:17.8]} 57.
g5 {[%clk 0:01:07]} 1-0

[Event "Live Chess"]
[Site "Chess.com"]
[Date "2023.05.20"]
[Round "-"]
[White "LanceMaster23"]
[Black "DerbyKnight"]
[Result "1-0"]
[WhiteElo "1856"]
[BlackElo "1631"]
[TimeControl "300"]
[EndTime "12:04:19 PDT"]
[Termination "LanceMaster23 won on time"]

1. Nf3 {[%clk 0:04:58.2]} 1... d5 {[%clk 0:04:57.9]} 2. d4 {[%clk 0:04:57.7]}
2... Nf6 {[%clk 0:04:55]} 3. Bf4 {[%clk 0:04:57.3]} 3... e6 {[%clk 0:04:52.4]}
4. e3 {[%clk 0:04:56.8]} 4... Bd6 {[%clk 0:04:51.1]} 5. Bg3 {[%clk 0:04:56.3]}
5... c5 {[%clk 0:04:49]} 6. c3 {[%clk 0:04:55.4]} 6... Qc7 {[%clk 0:04:47.8]} 7.
Nbd2 {[%clk 0:04:54.4]} 7... O-O {[%clk 0:04:39]} 8. Be2 {[%clk 0:04:52.1]} 8...
Nbd7 {[%clk 0:04:30.5]} 9. Qc2 {[%clk 0:04:50.6]} 9... e5 {[%clk 0:04:25.7]} 10.
dxe5 {[%clk 0:04:50.5]} 10... Nxe5 {[%clk 0:04:24.1]} 11. Nxe5 {[%clk
0:04:50.1]} 11... Bxe5 {[%clk 0:04:22.8]} 12. Nf3 {[%clk 0:04:49.7]} 12... Bd6
{[%clk 0:04:00.2]} 13. Rd1 {[%clk 0:04:46.9]} 13... Be6 {[%clk 0:03:57.6]} 14.
c4 {[%clk 0:04:17]} 14... d4 {[%clk 0:03:44.8]} 15. exd4 {[%clk 0:04:13]} 15...
cxd4 {[%clk 0:03:38.3]} 16. Rxd4 {[%clk 0:04:12.6]} 16... Bxg3 {[%clk 0:03:27]}
17. hxg3 {[%clk 0:04:10.7]} 17... Rad8 {[%clk 0:03:20.4]} 18. Rdh4 {[%clk
0:03:48.6]} 18... h6 {[%clk 0:03:09.1]} 19. O-O {[%clk 0:02:52.7]} 19... Rfe8
{[%clk 0:02:56.7]} 20. b3 {[%clk 0:02:09]} 20... Bg4 {[%clk 0:02:38.3]} 21. c5
{[%clk 0:01:41.7]} 21... Qa5 {[%clk 0:02:18.5]} 22. Bc4 {[%clk 0:01:06.6]} 22...
Bxf3 {[%clk 0:02:08.8]} 23. gxf3 {[%clk 0:01:04.4]} 23... Rd2 {[%clk 0:02:06.1]}
24. Qf5 {[%clk 0:00:58.7]} 24... Qc3 {[%clk 0:01:55.1]} 25. Rg4 {[%clk
0:00:39.1]} 25... Re7 {[%clk 0:01:26.4]} 26. Rf4 {[%clk 0:00:28]} 26... Qe5
{[%clk 0:01:10.5]} 27. Qc8+ {[%clk 0:00:26.6]} 27... Kh7 {[%clk 0:01:08]} 28.
Rf5 {[%clk 0:00:20.6]} 28... Qc3 {[%clk 0:00:55.9]} 29. c6 {[%clk 0:00:19.6]}
29... bxc6 {[%clk 0:00:53.8]} 30. Qxc6 {[%clk 0:00:19.1]} 30... Qb2 {[%clk
0:00:48.4]} 31. Qc5 {[%clk 0:00:17.4]} 31... Red7 {[%clk 0:00:40.9]} 32. Qe5
{[%clk 0:00:15.3]} 32... Qxe5 {[%clk 0:00:34.7]} 33. Rxe5 {[%clk 0:00:15.2]}
33... Rxa2 {[%clk 0:00:31.1]} 34. Rfe1 {[%clk 0:00:14.9]} 34... Rdd2 {[%clk
0:00:22.5]} 35. R1e2 {[%clk 0:00:14.5]} 35... Rxe2 {[%clk 0:00:09.9]} 36. Bxe2
{[%clk 0:00:14.4]} 36... Nd7 {[%clk 0:00:03.4]} 37. Re7 {[%clk 0:00:12.7]} 1-0

[Event "Live Chess"]
[Site "Chess.com"]
[Date "2023.05.20"]
[Round "-"]
[White "daniel9395"]
[Black "ReceptiveCamel"]
[Result "0-1"]
[WhiteElo "512"]
[BlackElo "640"]
[TimeControl "300"]
[EndTime "12:04:19 PDT"]
[Termination "ReceptiveCamel won on time"]

1. d4 {[%clk 0:04:55.2]} 1... Nc6 {[%clk 0:04:55.6]} 2. Nf3 {[%clk 0:04:53.6]}
2... Nf6 {[%clk 0:04:53.6]} 3. Nc3 {[%clk 0:04:38.6]} 3... d5 {[%clk 0:04:49.7]}
4. Ng5 {[%clk 0:04:18.5]} 4... Bf5 {[%clk 0:04:41.1]} 5. e4 {[%clk 0:04:12.1]}
5... dxe4 {[%clk 0:04:37.9]} 6. Bc4 {[%clk 0:03:52.3]} 6... h6 {[%clk
0:04:31.3]} 7. Nxf7 {[%clk 0:03:51.1]} 7... Qxd4 {[%clk 0:04:26.9]} 8. b3 {[%clk
0:03:21.1]} 8... Qxd1+ {[%clk 0:04:23.9]} 9. Kxd1 {[%clk 0:03:19.4]} 9... Bg4+
{[%clk 0:04:16.7]} 10. f3 {[%clk 0:03:14.7]} 10... exf3 {[%clk 0:04:14.6]} 11.
gxf3 {[%clk 0:03:13.4]} 11... Bxf3+ {[%clk 0:04:13.4]} 12. Ke1 {[%clk
0:03:09.3]} 12... Bxh1 {[%clk 0:04:12.2]} 13. Nxh8 {[%clk 0:03:07.6]} 13...
O-O-O {[%clk 0:04:07.6]} 14. Nf7 {[%clk 0:02:57.4]} 14... Rd4 {[%clk 0:03:57.5]}
15. Be6+ {[%clk 0:02:54.8]} 15... Kb8 {[%clk 0:03:50.5]} 16. Nb5 {[%clk
0:02:29.7]} 16... Re4+ {[%clk 0:03:45.8]} 17. Kf1 {[%clk 0:02:26.2]} 17... Rxe6
{[%clk 0:03:44]} 18. Bf4 {[%clk 0:02:12.1]} 18... a6 {[%clk 0:03:29.9]} 19. Nxc7
{[%clk 0:02:04.6]} 19... Re4 {[%clk 0:03:23.2]} 20. Bg3 {[%clk 0:01:42.9]} 20...
Re3 {[%clk 0:03:05.8]} 21. Bf2 {[%clk 0:01:28.9]} 21... Rf3 {[%clk 0:03:02.7]}
22. Kg1 {[%clk 0:01:24.9]} 22... Rxf2 {[%clk 0:02:57.7]} 23. Kxf2 {[%clk
0:01:23.1]} 23... Kxc7 {[%clk 0:02:55.1]} 24. Rxh1 {[%clk 0:01:21.4]} 24... Ne4+
{[%clk 0:02:49.4]} 25. Ke3 {[%clk 0:01:16.9]} 25... Nc3 {[%clk 0:02:45.7]} 26.
a3 {[%clk 0:01:10.7]} 26... e6 {[%clk 0:02:40.9]} 27. Rf1 {[%clk 0:01:02.6]}
27... Bxa3 {[%clk 0:02:37.8]} 28. Nh8 {[%clk 0:00:41.3]} 28... Nd5+ {[%clk
0:02:30.8]} 29. Kd2 {[%clk 0:00:38.5]} 29... Bb4+ {[%clk 0:02:26.5]} 30. Kd3
{[%clk 0:00:33.8]} 30... g5 {[%clk 0:02:11.4]} 31. Rf7+ {[%clk 0:00:30.2]} 31...
Kd6 {[%clk 0:02:08.7]} 32. c4 {[%clk 0:00:18.6]} 32... Bc3 {[%clk 0:02:04.6]}
33. cxd5 {[%clk 0:00:16.6]} 33... Bxh8 {[%clk 0:02:02.5]} 34. dxc6 {[%clk
0:00:10.2]} 34... bxc6 {[%clk 0:01:59.4]} 35. Kc4 {[%clk 0:00:05.8]} 35... g4
{[%clk 0:01:55]} 36. Rf8 {[%clk 0:00:02.8]} 36... Bg7 {[%clk 0:01:52.5]} 37.
Rd8+ {[%clk 0:00:00.2]} 37... Ke5 {[%clk 0:01:50.4]} 0-1